bitfinex-derivatives/quotes_SOLF0:USTF0_20260213
["timestamp","ask_amount","ask_price","bid_price","bid_amount"]
[1770986291829,3.77242564,80.114,80.081,11.2469]
[1770986292323,3.77242564,80.112,80.075,15.18157582]
[1770986292529,3.77242564,80.112,80.076,3.93377582]
[1770986293630,3.77242564,80.112,80.08,11.2471]
[1770986297135,3.77242564,80.109,80.061,3.93377582]
[1770986298434,3.77242564,80.096,80.061,3.93377582]
[1770986298737,3.77242564,80.089,80.051,3.93377582]
[1770986299039,3.77242564,80.089,80.031,3.93377582]
[1770986299342,3.77242564,80.089,80.041,3.93377582]
[1770986299634,3.77242564,80.089,80.053,3.93377582]
[1770986300833,3.77242564,80.089,80.055,3.93377582]
[1770986301635,15.01832564,80.089,80.055,3.93377582]
[1770986302234,3.77242564,80.089,80.055,3.93377582]
[1770986303843,15.01832564,80.089,80.055,3.93377582]
[1770986307935,3.77242564,80.085,80.055,3.93377582]
[1770986308842,11.2467,80.084,80.055,3.93377582]
[1770986311347,3.77242564,80.085,80.055,15.18437582]
[1770986314252,4.02078882,80.083,80.049,11.2515]
[1770986317545,4.02078882,80.083,80.055,4.12962702]
[1770986317949,11.2458,80.09,80.058,4.12962702]
[1770986318852,4.14047713,80.089,80.058,4.12962702]
[1770986319760,11.2461,80.088,80.058,4.12962702]
[1770986323453,11.2454,80.093,80.061,4.12962702]
[1770986323653,4.14047713,80.092,80.061,4.12962702]
[1770986324862,4.14047713,80.089,80.061,4.12962702]
[1770986325857,11.246,80.088,80.061,4.12962702]
[1770986326052,4.14047713,80.087,80.051,15.38082702]
[1770986326258,4.14047713,80.087,80.052,4.12962702]
[1770986327063,4.14047713,80.087,80.053,15.38052702]
[1770986327761,4.14047713,80.087,80.054,4.12962702]
[1770986329367,4.14047713,80.079,80.045,4.12962702]
[1770986330861,11.2476,80.077,80.045,4.12962702]
[1770986331265,4.14047713,80.079,80.052,15.38062702]
[1770986332665,11.2462,80.087,80.056,11.2505]
[1770986332965,15.38667713,80.087,80.056,11.2505]
[1770986333266,4.14047713,80.086,80.056,11.2505]
[1770986334169,4.14047713,80.084,80.056,11.2505]
[1770986334669,4.14047713,80.084,80.053,4.12962702]
[1770986334863,4.14047713,80.084,80.05,11.2512]
[1770986335065,4.14047713,80.08,80.051,4.12962702]
[1770986335961,4.14047713,80.08,80.044,11.2521]
[1770986336868,4.14047713,80.078,80.044,11.2521]
[1770986337069,4.14047713,80.078,80.049,15.38102702]
[1770986337263,4.14047713,80.078,80.05,4.12962702]
[1770986338958,4.14047713,80.078,80.052,11.251]
[1770986339162,4.14047713,80.078,80.05,4.12962702]
[1770986339561,4.14047713,80.078,80.051,11.2512]
[1770986341063,4.14047713,80.078,80.04,3.19581683]
[1770986341264,4.14047713,80.078,79.996,30.91395158]
[1770986341265,4.01285678,80.069,80.029,3.9734432]
[1770986341464,4.01285678,80.067,80.029,3.9734432]
[1770986342373,4.01285678,80.065,80.029,3.9734432]
[1770986342672,4.01285678,80.063,80.029,15.2276432]
[1770986343170,3.19581683,80.06,80.019,3.9734432]
[1770986343475,4.01285678,80.054,80.023,11.2551]
[1770986344977,4.01285678,80.047,80.007,3.9734432]
[1770986345377,4.01285678,80.047,80.011,3.9734432]
[1770986346881,4.01285678,80.047,80.011,15.2301432]
[1770986348180,4.01285678,80.047,80.012,3.9734432]
[1770986349880,4.01285678,80.045,80.012,3.9734432]
[1770986356184,11.2512,80.052,80.02,7.16926003]
[1770986357185,15.26405678,80.052,80.02,3.9734432]
[1770986357385,11.2514,80.05,80.02,7.16926003]
[1770986357988,15.26425678,80.05,80.02,7.16926003]
[1770986358285,4.01285678,80.049,80.02,7.16926003]
[1770986358888,4.01285678,80.049,80.02,3.9734432]
[1770986360277,4.01285678,80.049,80.013,11.2565]
[1770986361088,4.01285678,80.046,80.011,3.9734432]
[1770986362790,15.26505678,80.045,80.011,15.2301432]
[1770986363886,4.01285678,80.041,80.011,3.9734432]
[1770986364292,4.01285678,80.041,80.004,11.2577]
[1770986365796,11.2533,80.037,80.004,11.2577]
[1770986367796,4.01285678,80.036,80.004,11.2577]
[1770986368394,11.2533,80.037,80.001,3.9734432]
[1770986368395,4.01285678,80.034,80.001,3.9734432]
[1770986369706,11.2548,80.026,80.001,3.9734432]
[1770986372807,4.01285678,80.034,80.001,3.9734432]
[1770986373312,11.2533,80.037,80.001,3.9734432]
[1770986373702,15.35743084,80.037,80.001,3.9734432]
[1770986376607,15.28720549,80.034,80.001,3.9734432]
[1770986376807,4.03360549,80.033,80.001,3.9734432]
[1770986377613,11.2548,80.026,80.001,3.9734432]
[1770986377817,15.28840549,80.026,79.993,3.85979816]
[1770986378115,4.03360549,80.039,79.993,3.85979816]
[1770986379519,11.2549,80.025,79.993,3.85979816]
[1770986381312,4.03360549,80.024,79.99,3.19838933]
[1770986382813,4.03360549,80.024,79.956,45.82234082]
[1770986382814,4.03360549,80.019,79.97,3.19838933]
[1770986383120,4.03360549,80.019,79.963,3.85979816]
[1770986383708,4.03360549,80.004,79.966,15.12299816]
[1770986384916,4.03360549,80.004,79.97,3.19838933]
[1770986385315,4.03360549,80.004,79.98,3.19838933]
[1770986385720,4.03360549,80.004,79.972,11.2622]
[1770986386320,4.03360549,80.004,79.971,3.85979816]
[1770986386718,4.03360549,80.0,79.962,3.85979816]
[1770986386923,4.03360549,80.0,79.964,3.85979816]
[1770986387721,4.03360549,80.0,79.966,3.85979816]
[1770986388421,4.03360549,80.0,79.97,3.19838933]
[1770986389018,4.03360549,80.0,79.97,14.46088933]
[1770986389223,4.03360549,80.0,79.97,18.32068749]
[1770986389922,4.03360549,80.0,79.97,7.05818749]
[1770986393719,4.03360549,80.0,79.97,3.19838933]
[1770986393920,4.03360549,79.986,79.96,3.19838933]
[1770986394125,3.19838933,80.01,79.96,7.05818749]
[1770986394427,3.19838933,80.01,79.961,3.85979816]
[1770986394428,11.2594,79.993,79.961,3.85979816]
[1770986394615,4.03360549,80.019,79.971,3.85979816]
[1770986395730,3.19838933,80.02,79.971,3.85979816]
[1770986395731,11.258,80.004,79.971,3.85979816]
[1770986395925,4.03360549,80.004,79.971,3.85979816]
[1770986399524,11.2581,80.002,79.971,3.85979816]
[1770986400226,4.03360549,80.043,79.991,3.85979816]
[1770986400427,4.03360549,80.043,80.0,7.05818749]
[1770986400627,4.03360549,80.043,80.01,3.19838933]
[1770986401330,4.03360549,80.043,79.979,120.92]
[1770986401331,3.82756055,80.053,80.02,3.19838933]
[1770986401721,3.19838933,80.04,79.99,3.19838933]
[1770986401926,3.19838933,80.04,79.942,299.53908435]
[1770986401927,3.82756055,80.005,79.97,3.19838933]
[1770986402533,3.82756055,80.029,79.98,3.19838933]
[1770986402735,3.82756055,80.029,79.98,7.06955501]
[1770986403534,3.82756055,80.015,79.981,3.87116568]
[1770986405328,3.82756055,80.015,79.984,3.87116568]
[1770986408337,11.2558,80.019,79.99,3.19838933]
[1770986409626,11.2558,80.019,79.984,3.87116568]
[1770986415234,3.82756055,80.016,79.984,3.87116568]
[1770986416843,11.2566,80.013,79.984,3.87116568]
[1770986427354,3.82756055,80.016,79.984,3.87116568]
[1770986427548,3.82756055,80.025,79.991,3.87116568]
[1770986428846,3.82756055,80.024,79.992,11.2594]
[1770986429939,3.82756055,80.024,79.997,11.2587]
[1770986430344,3.82756055,80.024,79.991,3.87116568]
[1770986431753,3.82756055,80.024,79.992,3.87168935]
[1770986431955,3.82756055,80.024,80.0,3.20101585]
[1770986437150,13.03473148,80.047,80.011,3.91406971]
[1770986437351,9.06223699,80.046,80.02,3.20101585]
[1770986437548,3.97249449,80.046,80.02,3.20101585]
[1770986438453,9.06424084,80.052,80.021,3.91406971]
[1770986438653,3.97249449,80.055,80.021,3.91406971]
[1770986438855,13.03446141,80.054,80.021,3.91406971]
[1770986439054,13.03446141,80.053,80.021,3.91406971]
[1770986439256,3.97249449,80.053,80.021,3.91406971]
[1770986440656,3.97249449,80.053,80.03,3.20101585]
[1770986441359,3.97249449,80.053,80.021,3.91406971]
[1770986441561,3.97249449,80.053,80.012,15.17066971]
[1770986441953,3.97249449,80.048,80.01,3.20101585]
[1770986442152,3.97249449,80.046,80.01,3.20101585]
[1770986442360,3.97249449,80.045,80.01,3.20101585]
[1770986443060,3.97249449,80.037,80.01,3.20101585]
[1770986443851,3.97249449,80.037,80.003,3.91406971]
[1770986444254,3.97249449,80.037,80.01,3.20101585]
[1770986444855,15.22579449,80.036,80.01,3.20101585]
[1770986446058,3.97249449,80.035,80.003,3.91406971]
[1770986447655,3.97249449,80.035,80.003,3.69095229]
[1770986449456,11.2537,80.034,80.003,3.69095229]
[1770986449761,3.97249449,80.033,79.992,3.91406971]
[1770986450556,3.20101585,80.04,79.992,3.91406971]
[1770986450557,3.97249449,80.031,79.992,15.17356971]
[1770986450762,3.97249449,80.031,79.993,3.91406971]
[1770986451757,3.97249449,80.031,80.0,3.20101585]
[1770986452257,3.97249449,80.031,80.0,7.11508556]
[1770986453856,3.97249449,80.031,80.001,11.2582]
[1770986454063,3.97249449,80.031,79.99,3.20101585]
[1770986454263,3.97249449,80.031,79.991,3.91406971]
[1770986455166,3.97249449,80.031,79.993,3.91406971]
[1770986455466,3.97249449,80.031,80.0,3.20101585]
[1770986456568,3.97249449,80.031,79.993,3.91406971]
[1770986456768,3.97249449,80.029,79.984,11.2606]
[1770986457263,3.97249449,80.029,79.98,3.20101585]
[1770986457464,3.97249449,80.029,79.989,11.2598]
[1770986457966,3.97249449,80.027,79.989,11.2598]
[1770986458361,3.97249449,80.027,79.99,3.20101585]
[1770986459569,11.255,80.025,79.99,3.20101585]
[1770986459769,11.255,80.025,79.992,3.91406971]
[1770986462365,4.0540318,80.024,79.992,3.91406971]
[1770986464773,4.0540318,80.024,79.993,11.2593]
[1770986467468,4.0540318,80.022,79.986,11.2602]
[1770986467869,4.0540318,80.022,79.982,4.11085993]
[1770986468080,4.0540318,80.022,79.98,3.20101585]
[1770986468282,4.0540318,80.019,79.972,4.11085993]
[1770986468781,4.0540318,80.016,79.98,11.2611]
[1770986469384,4.0540318,80.016,79.98,14.46211585]
[1770986474384,4.0540318,80.016,79.98,18.57297578]
[1770986474591,4.0540318,80.012,79.974,11.262]
[1770986475390,4.0540318,80.011,79.974,11.262]
[1770986475590,4.0540318,80.011,79.979,11.2613]
[1770986481194,15.3110318,80.01,79.974,4.11085993]
[1770986481390,4.0540318,80.009,79.974,4.11085993]
[1770986482194,4.0540318,80.009,79.965,99.72]
[1770986482195,4.0540318,80.003,79.969,4.11085993]
[1770986482994,11.2585,80.0,79.969,4.11085993]
[1770986483996,11.2577,80.006,79.971,4.11085993]
[1770986485704,11.2577,80.006,79.972,11.2623]
[1770986485899,11.2577,80.006,79.973,4.11085993]
[1770986486902,11.2573,80.008,79.975,4.11085993]
[1770986492510,11.2573,80.008,79.98,7.37458007]
[1770986492710,11.2573,80.008,79.981,4.17295174]
[1770986494412,11.2558,80.019,79.983,4.17295174]
[1770986495814,11.2558,80.019,79.985,4.0322048]
[1770986497002,4.03976681,80.022,79.992,4.0322048]
[1770986497610,3.94284738,80.031,79.994,4.0322048]
[1770986497814,3.94284738,80.031,80.001,4.0322048]
[1770986498009,3.94284738,80.048,80.001,4.0322048]
[1770986498215,3.94284738,80.046,80.001,4.0322048]
[1770986498415,3.94284738,80.044,80.001,4.0322048]
[1770986498616,3.94284738,80.042,80.001,4.0322048]
[1770986498817,3.94284738,80.04,80.004,4.0322048]
[1770986499217,3.94284738,80.038,80.004,4.0322048]
[1770986501218,3.94284738,80.035,80.004,4.0322048]
[1770986502722,11.2524,80.043,80.004,4.0322048]
[1770986502923,9.04850328,80.042,80.004,4.0322048]
[1770986503123,11.2524,80.043,80.004,4.0322048]
[1770986503420,15.19524738,80.043,80.004,4.0322048]
[1770986504018,15.19524738,80.043,79.953,31.06369323]
[1770986504019,11.2513,80.051,80.011,4.0322048]
[1770986504720,11.2513,80.051,80.01,3.20162833]
[1770986504721,11.2513,80.051,80.013,4.0322048]
[1770986505021,11.2513,80.051,80.02,7.23383313]
[1770986506720,3.94284738,80.045,80.011,4.0322048]
[1770986506916,3.94284738,80.045,80.005,4.0322048]
[1770986507227,3.94284738,80.045,80.01,3.20162833]
[1770986507417,194.51366153,80.074,80.012,4.0322048]
[1770986507418,11.2515,80.05,80.012,4.0322048]
[1770986508125,15.19434738,80.05,80.012,4.0322048]
[1770986508719,3.20162833,80.06,80.012,4.0322048]
[1770986508720,11.252,80.046,80.013,11.2564]
[1770986508919,15.19484738,80.046,80.012,4.0322048]
[1770986509121,3.94284738,80.045,80.01,3.20162833]
[1770986511033,3.94284738,80.045,80.011,4.0322048]
[1770986511226,3.94284738,80.045,80.01,3.20162833]
[1770986511227,3.94284738,80.045,80.012,4.0322048]
[1770986511627,3.94284738,80.059,80.022,11.2553]
[1770986511832,3.94284738,80.059,80.022,15.2875048]
[1770986512531,3.94284738,80.059,80.022,11.2553]
[1770986512923,3.94284738,80.052,80.02,3.20162833]
[1770986513531,3.94284738,80.052,80.016,11.2561]
[1770986514033,3.94284738,80.048,80.012,4.0322048]
[1770986514331,3.94284738,80.048,80.002,4.0322048]
[1770986515633,3.94284738,80.047,80.012,11.2566]
[1770986520027,3.94284738,80.045,80.012,11.2566]
[1770986520628,3.94284738,80.045,80.017,11.2559]
[1770986522934,3.94284738,80.045,80.01,7.15706465]
[1770986522935,3.94284738,80.045,80.012,3.95543632]
[1770986524737,3.94284738,80.045,80.014,15.21183632]
[1770986525535,3.94284738,80.045,80.015,3.95543632]
[1770986526441,3.94284738,80.045,80.017,3.95543632]
[1770986526937,11.2508,80.054,80.021,3.95543632]
[1770986527137,3.94126838,80.065,80.021,3.95543632]
[1770986527342,3.94126838,80.065,80.03,3.20162833]
[1770986527639,3.94126838,80.075,80.033,3.95543632]
[1770986527835,3.94126838,80.073,80.033,3.95543632]
[1770986528337,3.20162833,80.08,80.03,3.20162833]
[1770986528338,3.94126838,80.06,80.03,3.20162833]
[1770986528535,3.94126838,80.06,80.023,3.95543632]
[1770986529041,3.94126838,80.055,80.018,11.2557]
[1770986530831,3.94126838,80.053,80.018,11.2557]
[1770986531032,3.94126838,80.049,80.008,11.2572]
[1770986531634,3.94126838,80.037,80.001,3.95543632]
[1770986532042,3.94126838,80.037,79.998,11.2586]
[1770986533042,3.94126838,80.035,79.998,11.2586]
[1770986534348,3.94126838,80.032,79.998,11.2586]
[1770986536251,3.94126838,80.027,79.992,3.95543632]
[1770986536447,3.94126838,80.027,79.981,3.95543632]
[1770986536649,3.94126838,80.019,79.981,3.95543632]
[1770986536943,3.94126838,80.019,79.982,3.95543632]
[1770986538741,11.2559,80.018,79.982,3.95543632]
[1770986539953,15.19716838,80.018,79.982,3.95543632]
[1770986541051,3.94126838,80.018,79.983,11.2607]
[1770986542447,3.94126838,80.018,79.982,3.95543632]
[1770986544348,11.2562,80.016,79.982,3.95543632]
[1770986545056,15.19746838,80.016,79.982,3.95543632]
[1770986545254,3.94126838,80.013,79.972,3.95543632]
[1770986545452,3.94126838,80.009,79.962,3.95543632]
[1770986545653,3.94126838,79.999,79.962,3.95543632]
[1770986545848,3.94126838,79.987,79.95,7.15661378]
[1770986546049,3.94126838,79.987,79.95,3.95543632]
[1770986546557,3.94126838,79.984,79.94,14.46787746]
[1770986546759,3.94126838,79.984,79.94,11.2667]
[1770986547253,3.94126838,79.979,79.94,15.22213632]
[1770986547459,3.94126838,79.979,79.93,7.15661378]
[1770986547852,3.94126838,79.979,79.93,3.95543632]
[1770986548159,3.94126838,79.959,79.917,3.95543632]
[1770986549861,3.94126838,79.956,79.917,3.95543632]
[1770986550448,3.20117746,79.95,79.905,3.95543632]
[1770986550858,4.18736156,79.949,79.905,3.95543632]
[1770986551762,11.2666,79.942,79.905,3.95543632]
[1770986557064,4.18736156,79.949,79.91,3.20117746]
[1770986557365,4.18736156,79.949,79.911,3.81782875]
[1770986558358,4.18736156,79.949,79.917,3.81782875]
[1770986558669,15.22051678,79.959,79.917,3.81782875]
[1770986559059,11.2646,79.957,79.919,3.81782875]
[1770986559259,15.22091678,79.957,79.919,3.81782875]
[1770986560169,3.95631678,79.956,79.919,3.81782875]
[1770986561871,3.95631678,79.952,79.91,3.20117746]
[1770986562063,3.95631678,79.952,79.906,3.81782875]
[1770986562258,15.22291678,79.942,79.906,3.81782875]
[1770986562456,3.20117746,79.94,79.895,3.81782875]
[1770986562670,3.95631678,79.939,79.89,3.20117746]
[1770986563175,3.95631678,79.931,79.887,11.2742]
[1770986563367,3.95631678,79.929,79.887,11.2742]
[1770986564170,3.95631678,79.925,79.871,3.81782875]
[1770986565072,3.95631678,79.919,79.871,3.81782875]
[1770986565278,3.95631678,79.908,79.864,11.2775]
[1770986565978,3.95631678,79.908,79.864,15.09532875]
[1770986566776,3.95631678,79.905,79.864,15.09532875]
[1770986567166,3.95631678,79.905,79.867,15.09492875]
[1770986568574,3.95631678,79.905,79.87,3.20117746]
[1770986569976,3.95631678,79.905,79.867,15.09492875]
[1770986570273,15.22691678,79.914,79.874,3.81782875]
[1770986570573,3.20117746,79.92,79.874,3.81782875]
[1770986570574,3.95631678,79.913,79.874,3.81782875]
[1770986570770,22.5324,79.945,79.874,3.81782875]
[1770986570976,3.95631678,79.939,79.891,3.81782875]
[1770986571972,15.22451678,79.931,79.891,3.81782875]
[1770986573776,11.2672,79.938,79.901,3.81782875]
[1770986574268,15.22551678,79.924,79.89,7.01900621]
[1770986574473,3.95631678,79.923,79.89,3.81782875]
[1770986574676,3.95631678,79.923,79.89,7.01900621]
[1770986575073,3.95631678,79.923,79.888,128.88]
[1770986575378,3.95631678,79.923,79.88,3.20117746]
[1770986575681,3.95631678,79.922,79.881,3.81782875]
[1770986576071,11.2697,79.92,79.883,3.81782875]
[1770986578277,3.95631678,79.939,79.9,3.20117746]
[1770986578480,3.95631678,79.939,79.901,3.81782875]
[1770986580483,15.22341678,79.939,79.901,3.81782875]
[1770986582785,4.06516062,79.936,79.901,3.81782875]
[1770986583185,4.06516062,79.936,79.893,11.2734]
[1770986583588,4.06516062,79.925,79.89,129.64]
[1770986583885,4.06516062,79.925,79.88,3.20117746]
[1770986584092,4.06516062,79.914,79.87,3.20117746]
[1770986584502,4.06516062,79.911,79.872,11.2763]
[1770986584998,4.06516062,79.922,79.881,3.89212189]
[1770986585793,11.2684,79.93,79.891,3.89212189]
[1770986585998,4.06516062,79.934,79.9,7.09329935]
[1770986587000,4.06516062,79.934,79.901,3.89212189]
[1770986588794,4.06516062,79.932,79.89,3.20117746]
[1770986589198,4.06516062,79.932,79.888,134.71212189]
[1770986589199,4.06516062,79.922,79.888,130.82]
[1770986592908,4.06516062,79.917,79.876,3.89212189]
[1770986593099,4.06516062,79.917,79.875,11.2759]
[1770986593701,11.2704,79.915,79.875,11.2759]
[1770986593903,4.06516062,79.914,79.875,11.2759]
[1770986594301,4.06516062,79.914,79.878,11.2755]
[1770986594506,4.06516062,79.914,79.88,3.20117746]
[1770986595498,4.06516062,79.914,79.882,15.16702189]
[1770986595703,11.2695,79.921,79.883,3.89212189]
[1770986596411,11.2701,79.917,79.883,3.89212189]
[1770986597508,11.2707,79.913,79.883,3.89212189]
[1770986601013,11.2698,79.919,79.89,3.20906208]
[1770986601701,11.2698,79.919,79.89,7.10118397]
[1770986601902,11.269,79.925,79.891,3.89212189]
[1770986603713,4.06516062,79.927,79.891,3.89212189]
[1770986604711,11.2689,79.926,79.891,3.89212189]
[1770986605908,11.2689,79.926,79.893,3.89212189]
[1770986606103,4.06516062,79.927,79.893,3.89212189]
[1770986608115,4.06516062,79.926,79.89,3.20906208]
[1770986608316,4.06516062,79.926,79.89,7.10118397]
[1770986608615,4.06516062,79.926,79.891,3.89212189]
[1770986609708,4.06516062,79.926,79.892,3.89212189]
[1770986613618,3.98484289,79.937,79.901,3.85606242]
[1770986615016,11.2657,79.948,79.911,3.85606242]
[1770986615215,3.98484289,79.947,79.911,3.85606242]
[1770986615815,3.98484289,79.947,79.901,4.18643765]
[1770986616207,11.2661,79.945,79.902,11.2721]
[1770986616412,3.88986312,79.944,79.902,11.2721]
[1770986616612,3.88986312,79.944,79.91,3.20906208]
[1770986621618,11.2653,79.951,79.912,4.18643765]
[1770986621922,3.88986312,79.95,79.92,3.20906208]
[1770986622114,3.88986312,79.95,79.912,4.18643765]
[1770986622820,3.88986312,79.95,79.916,11.2701]
[1770986624014,3.88986312,79.95,79.918,11.2699]
[1770986624220,3.88986312,79.95,79.919,4.18643765]
[1770986624618,3.88986312,79.95,79.911,4.18643765]
[1770986625022,3.88986312,79.948,79.911,4.18643765]
[1770986625224,3.88986312,79.948,79.901,4.18643765]
[1770986626722,3.88986312,79.942,79.905,11.2717]
[1770986626922,3.88986312,79.942,79.91,3.20906208]
[1770986628420,15.15656312,79.941,79.91,3.20906208]
[1770986628628,3.88986312,79.94,79.91,3.20906208]
[1770986629223,11.2661,79.946,79.911,4.18643765]
[1770986629415,3.88986312,79.95,79.921,4.18643765]
[1770986630732,11.2658,79.948,79.921,4.18643765]
[1770986631730,3.88986312,79.95,79.921,4.18643765]
[1770986633325,11.59218856,79.976,79.9,99.76]
[1770986633326,11.2672,79.938,79.901,4.18643765]
[1770986634133,3.88986312,79.94,79.907,4.18643765]
[1770986634832,11.2672,79.938,79.907,4.18643765]
[1770986635331,3.88986312,79.937,79.907,4.18643765]
[1770986638722,11.2671,79.939,79.91,3.20906208]
[1770986638927,11.2671,79.939,79.911,4.18643765]
[1770986649537,15.08976274,79.939,79.911,4.18643765]
[1770986652042,3.82266274,79.939,79.911,4.18643765]
[1770986652431,11.2662,79.945,79.911,4.18643765]
[1770986652632,15.08886274,79.945,79.911,4.18643765]
[1770986652941,11.2666,79.942,79.911,4.18643765]
[1770986654536,15.08926274,79.942,79.911,4.18643765]
[1770986655546,3.82266274,79.941,79.911,4.18643765]
[1770986657748,3.82266274,79.941,79.912,4.09913004]
[1770986658146,11.2657,79.949,79.912,4.09913004]
[1770986658342,9.07770693,79.948,79.912,4.09913004]
[1770986658543,9.07770693,79.947,79.912,4.09913004]
[1770986658847,9.07770693,79.946,79.92,3.20906208]
[1770986659050,9.07770693,79.945,79.92,3.20906208]
[1770986659246,11.2657,79.949,79.92,3.20906208]
[1770986659247,9.07770693,79.944,79.92,3.20906208]
[1770986659447,9.07770693,79.943,79.92,3.20906208]
[1770986659636,11.2657,79.949,79.92,3.20906208]
[1770986659843,9.08106003,79.948,79.92,3.20906208]
[1770986660152,11.2657,79.949,79.92,7.30819212]
[1770986660349,9.08040061,79.948,79.92,7.30819212]
[1770986660548,11.2657,79.949,79.92,7.30819212]
[1770986660754,9.08042842,79.948,79.92,7.30819212]
[1770986660953,11.2657,79.949,79.92,7.30819212]
[1770986661248,9.08043394,79.948,79.92,7.30819212]
[1770986661445,11.2657,79.949,79.92,7.30819212]
[1770986661641,9.07985709,79.948,79.92,7.30819212]
[1770986661844,11.2657,79.949,79.92,7.30819212]
[1770986662146,3.82266274,79.951,79.921,4.09913004]
[1770986663648,11.2647,79.956,79.921,4.09913004]
[1770986663850,3.82266274,79.97,79.931,4.09913004]
[1770986664047,9.07929827,79.969,79.94,3.20563246]
[1770986664253,3.82266274,79.97,79.931,4.09913004]
[1770986664452,9.07466387,79.969,79.94,7.3047625]
[1770986664744,3.82266274,79.97,79.94,7.3047625]
[1770986664947,9.07472154,79.969,79.94,7.3047625]
[1770986665147,3.82266274,79.97,79.941,4.09913004]
[1770986671862,3.94711888,79.992,79.951,3.93155284]
[1770986672060,3.94711888,79.992,79.96,3.20563246]
[1770986672461,3.94711888,79.992,79.961,3.93155284]
[1770986673355,3.94711888,79.992,79.951,3.93155284]
[1770986673860,3.94711888,79.99,79.96,3.20563246]
[1770986683462,3.94711888,79.99,79.955,4.02340098]
[1770986686660,3.94711888,79.99,79.96,3.20563246]
[1770986694067,3.99805445,79.988,79.944,4.02340098]
[1770986694274,3.99805445,79.988,79.94,3.20563246]
[1770986695869,11.2623,79.973,79.94,3.20563246]
[1770986696261,11.2623,79.973,79.94,7.22903344]
[1770986696972,11.2623,79.973,79.941,4.02340098]
[1770986700473,3.99805445,79.974,79.941,4.02340098]
[1770986701474,3.81249899,79.972,79.932,11.2679]
[1770986702374,3.81249899,79.972,79.937,4.01872581]
[1770986702578,3.81249899,79.972,79.94,7.22435827]
[1770986702876,3.81249899,79.972,79.943,11.2664]
[1770986703674,3.81249899,79.987,79.951,4.01872581]
[1770986704782,3.81249899,79.987,79.94,3.20563246]
[1770986705083,3.81249899,79.979,79.938,117.76]
[1770986705285,3.81249899,79.979,79.931,4.01872581]
[1770986705974,3.81249899,79.969,79.92,3.20563246]
[1770986706175,3.81249899,79.969,79.921,4.01872581]
[1770986706783,3.81249899,79.968,79.929,11.2684]
[1770986707289,3.81249899,79.968,79.928,11.2685]
[1770986707675,3.81249899,79.968,79.931,4.01872581]
[1770986708877,3.81249899,79.968,79.934,11.2677]
[1770986712082,3.81249899,79.968,79.931,4.01872581]
[1770986712577,3.81249899,79.968,79.927,11.2686]
[1770986712778,3.81249899,79.968,79.927,15.28732581]
[1770986713784,3.81249899,79.966,79.927,15.28732581]
[1770986714977,3.81249899,79.964,79.927,15.28732581]
[1770986716688,3.81249899,79.962,79.927,4.01872581]
[1770986720687,3.81249899,79.962,79.92,14.47533246]
[1770986720688,3.81249899,79.962,79.928,4.01872581]
[1770986720889,3.81249899,79.971,79.931,4.01872581]
[1770986721291,3.81249899,79.969,79.931,4.01872581]
[1770986722098,15.07549899,79.968,79.931,4.01872581]
[1770986722499,11.2639,79.961,79.931,4.01872581]
[1770986723500,11.2639,79.961,79.93,3.20520892]
[1770986723501,3.81249899,79.978,79.941,4.01872581]
[1770986724797,3.81249899,79.978,79.944,4.01872581]
[1770986726202,3.81249899,79.978,79.95,3.20520892]
[1770986726398,11.2608,79.983,79.951,4.01872581]
[1770986728899,3.81249899,79.982,79.951,4.01872581]
[1770986729603,3.81249899,79.98,79.95,3.20520892]
[1770986729911,3.81249899,79.977,79.934,11.2677]
[1770986730504,3.81249899,79.977,79.94,3.20520892]
[1770986730806,4.13064464,79.974,79.934,15.28642581]
[1770986731700,11.2626,79.97,79.934,15.28642581]
[1770986731901,4.13064464,79.969,79.934,15.28642581]
[1770986734598,11.2626,79.97,79.935,4.04118068]
[1770986734799,20.39933088,79.977,79.941,4.04118068]
[1770986735113,9.13369007,79.976,79.941,4.04118068]
[1770986735411,4.13064464,79.979,79.951,4.122144]
[1770986735813,11.2606,79.985,79.951,4.122144]
[1770986737208,9.1374953,79.984,79.951,4.122144]
[1770986737408,11.2606,79.985,79.951,4.122144]
[1770986737611,9.13775751,79.984,79.951,4.122144]
[1770986737805,11.2606,79.985,79.951,4.122144]
[1770986738004,9.13775751,79.984,79.951,4.122144]
[1770986738204,11.2606,79.985,79.951,4.122144]
[1770986738406,9.13729971,79.984,79.951,4.122144]
[1770986738606,11.2606,79.985,79.951,4.122144]
[1770986738808,9.13507242,79.984,79.951,4.122144]
[1770986739113,11.2606,79.985,79.951,4.122144]
[1770986739114,9.13830973,79.983,79.951,4.122144]
[1770986739414,11.2606,79.985,79.951,4.122144]
[1770986739615,9.14132157,79.984,79.951,4.122144]
[1770986739816,9.14132157,79.983,79.951,4.122144]
[1770986740016,11.2608,79.983,79.951,4.122144]
[1770986741120,15.27983879,79.983,79.951,4.122144]
[1770986741719,4.01903879,79.967,79.925,4.122144]
[1770986741916,4.01903879,79.967,79.93,3.20520892]